[Event "SWE-ch 65 2019"]
[Site "Eskilstuna"]
[Date "2019.07.12"]
[Round "7.4"]
[White "Wademark, Helge"]
[Black "Alquist, Erik"]
[Result "0-1"]
[ECO "B23"]
[WhiteElo "2002"]
[BlackElo "1976"]
[Annotator "NA"]
[PlyCount "42"]
[EventDate "2019.07.06"]
[EventType "tourn"]
[EventCountry "SWE"]
[SourceTitle "playchess.com"]
[Source "ChessBase"]
[SourceQuality "1"]
[TimeControl "40/5400+30:1800+30"]

1. e4 {[%emt 0:00:00]} c5 {[%emt 0:00:00]} 2. Nc3 {[%emt 0:00:00]} Nc6 {[%emt 0:00:00]} 3. f4 {[%emt 0:00:00]} g6 {[%emt 0:00:08]} 4. Nf3 {[%emt 0:00:03]} Bg7 {[%emt 0:00:06]} 5. Bb5 {[%emt 0:00:02]} Nd4 6. Nxd4 {[%emt 0:00:18]} cxd4 {[%emt 0:00:21]} 7. Ne2 {[%emt 0:00:03]} a6 {[%emt 0:00:29]} 8. Bd3 {[%emt 0:00:03]} d5 {[%emt 0:00:17]} 9. e5 {[%emt 0:02:05]} f6 {[%emt 0:00:28]} 10. exf6 {[%emt 0:01:35]} Nxf6 {[%emt 0:00:11]} 11. O-O {[%emt 0:05:39]} O-O {[%emt 0:00:08]} 12. c3 {[%emt 0:00:18]} Nh5 {[%emt 0:02:26]} 13. g3 {[%emt 0:11:29]} Bh3 {[%emt 0:06:19]} 14. Re1 {[%emt 0:16:01]} e5 {[%emt 0:12:57]} 15. fxe5 {[%emt 0:01:29]} Bxe5 {[%emt 0:05:38]} 16. Kh1 {[%emt 0:02:25]} Qg5 {[%emt 0:09:22]} 17. cxd4 {[%emt 0:03:35]} Bd6 {[%emt 0:14:48]} 18. Qb3 {[%emt 0:00:48]} Rae8 {[%emt 0:05:54]} 19. Qd1 {[%emt 0:02:10]} Rf2 {[%emt 0:02:26]} 20. b3 {[%emt 0:00:40]} Qg4 {[%emt 0:01:38]} 21. Bb2 {[%emt 0:00:37]} Qf3+ {[%emt 0:00:30]} 0-1

[Event "SWE-ch 65 2019"]
[Site "Eskilstuna"]
[Date "2019.07.13"]
[Round "8.1"]
[White "Blomstrom, Lars"]
[Black "Bellon Lopez, Juan Manuel"]
[Result "1/2-1/2"]
[ECO "B26"]
[WhiteElo "2153"]
[BlackElo "2343"]
[Annotator "NA"]
[PlyCount "215"]
[EventDate "2019.07.06"]
[EventType "tourn"]
[EventCountry "SWE"]
[SourceTitle "playchess.com"]
[Source "ChessBase"]
[SourceQuality "1"]
[TimeControl "40/5400+30:1800+30"]

1. e4 {[%emt 0:00:00]} c5 {[%emt 0:00:00]} 2. Nc3 {[%emt 0:00:00]} Nc6 {[%emt 0:00:01]} 3. g3 {[%emt 0:00:02]} g6 {[%emt 0:00:06]} 4. Bg2 {[%emt 0:00:08]} Bg7 {[%emt 0:00:06]} 5. d3 {[%emt 0:00:23]} d6 {[%emt 0:00:10]} 6. Be3 {[%emt 0:02:07]} e5 {[%emt 0:00:59]} 7. Qd2 {[%emt 0:03:17]} Nge7 {[%emt 0:00:17]} 8. Nge2 {[%emt 0:01:44]} Nd4 {[%emt 0:02:18]} 9. O-O {[%emt 0:02:56]} O-O {[%emt 0:18:02]} 10. Rab1 {[%emt 0:27:52]} Be6 {[%emt 0:04:44]} 11. f4 {[%emt 0:04:21]} Qd7 {[%emt 0:04:26]} 12. a3 {[%emt 0:07:38]} Rac8 {[%emt 0:05:00]} 13. Bf2 {[%emt 0:06:10]} b6 {[%emt 0:09:21]} 14. Nxd4 {[%emt 0:03:30]} exd4 {[%emt 0:03:09]} 15. Ne2 {[%emt 0:00:27]} d5 {[%emt 0:04:19]} 16. e5 {[%emt 0:07:19]} Bh3 {[%emt 0:02:13]} 17. Bxh3 {[%emt 0:01:53]} Qxh3 {[%emt 0:00:05]} 18. Kh1 {[%emt 0:00:18]} Rfe8 {[%emt 0:03:31]} 19. Rbe1 {[%emt 0:02:34]} Bh6 {[%emt 0:03:07]} 20. Ng1 {[%emt 0:02:52]} Qh5 {[%emt 0:02:11]} 21. h3 {[%emt 0:03:06]} Qf5 {[%emt 0:00:25]} 22. Kg2 {[%emt 0:07:34]} Nc6 {[%emt 0:01:28]} 23. Nf3 {[%emt 0:01:01]} Nxe5 {[%emt 0:04:50]} 24. Nxe5 {[%emt 0:02:13]} Rxe5 {[%emt 0:00:29]} 25. Rxe5 {[%emt 0:01:26]} Qxe5 {[%emt 0:00:09]} 26. Re1 {[%emt 0:00:32]} Qd6 {[%emt 0:01:33]} 27. Qe2 {[%emt 0:01:04]} Bf8 {[%emt 0:01:23]} 28. Qf3 {[%emt 0:02:13]} Bg7 {[%emt 0:02:06]} 29. Re2 {[%emt 0:03:27]} Kf8 {[%emt 0:03:11]} 30. f5 {[%emt 0:02:35]} Re8 {[%emt 0:00:58]} 31. fxg6 {[%emt 0:00:45]} hxg6 {[%emt 0:00:44]} 32. Rxe8+ {[%emt 0:00:05]} Kxe8 {[%emt 0:00:04]} 33. g4 {[%emt 0:01:06]} Be5 {[%emt 0:01:16]} 34. h4 {[%emt 0:00:24]} Kf8 {[%emt 0:06:02]} 35. h5 {[%emt 0:03:17]} Kg8 {[%emt 0:02:43]} 36. Bh4 {[%emt 0:00:56]} Bf4 {[%emt 0:02:28]} 37. a4 {[%emt 0:00:38]} Qe5 {[%emt 0:02:44]} 38. b3 {[%emt 0:00:32]} Kg7 {[%emt 0:01:59]} 39. Bf2 {[%emt 0:00:11]} gxh5 {[%emt 0:00:51]} 40. gxh5 {[%emt 0:00:05]} Kh6 {[%emt 0:00:13]} 41. Bh4 {[%emt 0:07:38]} Qe3 {[%emt 0:07:07]} 42. Bf2 {[%emt 0:05:37]} Qxf3+ {[%emt 0:12:00]} 43. Kxf3 {[%emt 0:00:05]} Kg5 {[%emt 0:00:45]} 44. h6 {[%emt 0:02:58]} Be5 {[%emt 0:00:06]} 45. h7 {[%emt 0:00:07]} Kg6 {[%emt 0:01:15]} 46. Bg3 {[%emt 0:00:38]} Bf6 {[%emt 0:01:05]} 47. Bb8 {[%emt 0:00:36]} a6 {[%emt 0:00:29]} 48. Ba7 {[%emt 0:00:42]} b5 {[%emt 0:00:34]} 49. axb5 {[%emt 0:00:13]} axb5 {[%emt 0:00:01]} 50. Bxc5 {[%emt 0:00:06]} Kxh7 {[%emt 0:00:04]} 51. Bb4 {[%emt 0:01:12]} Kg6 {[%emt 0:00:24]} 52. Bc5 {[%emt 0:00:15]} Kf5 {[%emt 0:00:09]} 53. Bb4 {[%emt 0:00:53]} Be5 {[%emt 0:00:56]} 54. Bd2 {[%emt 0:00:28]} Kg6 {[%emt 0:00:17]} 55. Be1 {[%emt 0:00:24]} Kg5 {[%emt 0:00:40]} 56. Bf2 {[%emt 0:00:28]} f5 {[%emt 0:00:11]} 57. Be1 {[%emt 0:00:20]} Bd6 {[%emt 0:02:43]} 58. Bf2 {[%emt 0:00:14]} Be5 {[%emt 0:01:32]} 59. Be1 {[%emt 0:00:02]} Kf6 {[%emt 0:00:24]} 60. Bd2 {[%emt 0:00:40]} Bh2 {[%emt 0:00:44]} 61. Be1 {[%emt 0:00:31]} Bg1 {[%emt 0:01:21]} 62. Bd2 {[%emt 0:01:57]} Be3 {[%emt 0:01:27]} 63. Bb4 {[%emt 0:01:15]} Kg5 {[%emt 0:00:50]} 64. Be7+ {[%emt 0:00:37]} Kh5 {[%emt 0:00:05]} 65. Bf6 {[%emt 0:00:18]} Kg6 {[%emt 0:00:51]} 66. Be7 {[%emt 0:00:20]} Kh6 {[%emt 0:00:31]} 67. Bf6 {[%emt 0:00:18]} Kg6 {[%emt 0:01:10]} 68. Be7 {[%emt 0:00:01]} Kf7 {[%emt 0:00:04]} 69. Bb4 {[%emt 0:00:20]} Ke6 {[%emt 0:00:05]} 70. Bf8 {[%emt 0:01:39]} Kd7 {[%emt 0:01:32]} 71. Bb4 {[%emt 0:00:08]} Kc6 {[%emt 0:00:08]} 72. Be7 {[%emt 0:00:51]} Kb6 {[%emt 0:01:54]} 73. Bb4 {[%emt 0:00:36]} Bc1 {[%emt 0:01:33]} 74. Kf2 {[%emt 0:01:11]} Bf4 {[%emt 0:00:27]} 75. Kf3 {[%emt 0:00:53]} Bc7 {[%emt 0:00:09]} 76. Be1 {[%emt 0:02:58]} Kc5 {[%emt 0:00:09]} 77. Bd2 {[%emt 0:00:10]} Bh2 {[%emt 0:00:51]} 78. Kg2 {[%emt 0:00:10]} Bd6 {[%emt 0:00:32]} 79. Kf3 {[%emt 0:00:02]} Be5 {[%emt 0:00:09]} 80. Kg2 {[%emt 0:00:14]} Bc7 {[%emt 0:00:57]} 81. Kf3 {[%emt 0:00:12]} Kb6 {[%emt 0:00:20]} 82. Bb4 {[%emt 0:00:52]} Ka6 {[%emt 0:00:59]} 83. Bc5 {[%emt 0:00:24]} Ka5 {[%emt 0:02:07]} 84. Be7 {[%emt 0:00:24]} Be5 {[%emt 0:00:46]} 85. Kf2 {[%emt 0:00:12]} Ka6 {[%emt 0:00:58]} 86. Kf3 {[%emt 0:00:20]} Kb7 {[%emt 0:00:09]} 87. Kf2 {[%emt 0:00:19]} Kc8 {[%emt 0:00:06]} 88. Kf3 {[%emt 0:00:16]} Kc7 {[%emt 0:00:21]} 89. Kf2 {[%emt 0:00:31]} Bd6 {[%emt 0:00:13]} 90. Bf6 {[%emt 0:00:13]} Bc5 {[%emt 0:00:10]} 91. Kf3 {[%emt 0:00:15]} Kd6 {[%emt 0:00:19]} 92. Bd8 {[%emt 0:00:43]} Kd7 {[%emt 0:00:54]} 93. Bf6 {[%emt 0:00:55]} Bb6 {[%emt 0:00:38]} 94. Bh4 {[%emt 0:01:41]} Ke6 {[%emt 0:00:31]} 95. Bg5 {[%emt 0:00:11]} Ba5 {[%emt 0:00:55]} 96. Ke2 {[%emt 0:01:23]} Kf7 {[%emt 0:00:50]} 97. Kf3 {[%emt 0:00:07]} Bb4 {[%emt 0:00:36]} 98. Bd8 {[%emt 0:00:11]} Bd6 {[%emt 0:00:16]} 99. Bb6 {[%emt 0:00:12]} Be5 {[%emt 0:00:06]} 100. Ba5 {[%emt 0:00:13]} Kg6 {[%emt 0:00:04]} 101. Bd8 {[%emt 0:00:29]} Bf6 {[%emt 0:00:30]} 102. Ba5 {[%emt 0:00:07]} Bg5 {[%emt 0:00:20]} 103. Bb6 {[%emt 0:00:16]} Be3 {[%emt 0:00:24]} 104. Bc7 {[%emt 0:00:58]} Kh5 {[%emt 0:00:34]} 105. Bg3 {[%emt 0:00:17]} Kg5 {[%emt 0:00:02]} 106. Be5 {[%emt 0:01:25]} Kh4 {[%emt 0:00:35]} 107. Bf6+ {[%emt 0:00:41]} Kh5 {[%emt 0:02:39]} 108. Be5 {[%emt 0:01:43]} 1/2-1/2

[Event "SWE-ch 65 2019"]
[Site "Eskilstuna"]
[Date "2019.07.13"]
[Round "8.2"]
[White "Alquist, Erik"]
[Black "Korning, Peter"]
[Result "1/2-1/2"]
[ECO "C88"]
[WhiteElo "1976"]
[BlackElo "1964"]
[Annotator "NA"]
[PlyCount "90"]
[EventDate "2019.07.06"]
[EventType "tourn"]
[EventCountry "SWE"]
[SourceTitle "playchess.com"]
[Source "ChessBase"]
[SourceQuality "1"]
[TimeControl "40/5400+30:1800+30"]

1. e4 {[%emt 0:00:00]} e5 {[%emt 0:00:00]} 2. Nf3 {[%emt 0:00:00]} Nc6 {[%emt 0:00:00]} 3. Bb5 {[%emt 0:00:00]} a6 {[%emt 0:00:00]} 4. Ba4 {[%emt 0:00:03]} Nf6 {[%emt 0:00:04]} 5. O-O {[%emt 0:00:06]} Be7 {[%emt 0:00:07]} 6. Re1 {[%emt 0:00:08]} b5 {[%emt 0:00:26]} 7. Bb3 {[%emt 0:00:05]} O-O {[%emt 0:00:40]} 8. h3 {[%emt 0:00:23]} Bb7 {[%emt 0:03:51]} 9. d3 {[%emt 0:00:06]} d5 {[%emt 0:02:43]} 10. exd5 {[%emt 0:00:13]} Nxd5 {[%emt 0:00:22]} 11. Nbd2 {[%emt 0:00:20]} Nf4 {[%emt 0:20:42]} 12. Ne4 {[%emt 0:01:49]} Na5 {[%emt 0:04:22]} 13. Nxe5 {[%emt 0:20:36]} Nxb3 {[%emt 0:00:24]} 14. axb3 {[%emt 0:00:07]} Nxg2 {[%emt 0:01:03]} 15. Kxg2 {[%emt 0:00:07]} f5 {[%emt 0:00:55]} 16. f3 {[%emt 0:09:10]} fxe4 {[%emt 0:00:23]} 17. dxe4 {[%emt 0:02:47]} Bd6 {[%emt 0:04:41]} 18. f4 {[%emt 0:04:45]} Bxe5 {[%emt 0:03:41]} 19. Qxd8 {[%emt 0:01:28]} Raxd8 {[%emt 0:00:03]} 20. fxe5 {[%emt 0:00:16]} Rde8 {[%emt 0:00:16]} 21. Kg3 {[%emt 0:03:21]} Rxe5 {[%emt 0:04:22]} 22. Bf4 {[%emt 0:01:34]} Re6 {[%emt 0:02:03]} 23. Rf1 {[%emt 0:07:33]} Bxe4 {[%emt 0:04:53]} 24. Bxc7 {[%emt 0:03:38]} Rg6+ {[%emt 0:04:32]} 25. Kh4 {[%emt 0:02:38]} Bxc2 {[%emt 0:05:25]} 26. Rxf8+ {[%emt 0:02:59]} Kxf8 {[%emt 0:00:01]} 27. b4 {[%emt 0:01:05]} Ke7 {[%emt 0:10:31]} 28. Be5 {[%emt 0:05:06]} Ke6 {[%emt 0:09:15]} 29. Re1 {[%emt 0:04:04]} Kf7 {[%emt 0:04:34]} 30. Rf1+ {[%emt 0:02:05]} Kg8 {[%emt 0:02:15]} 31. Bd4 {[%emt 0:09:24]} h6 {[%emt 0:01:19]} 32. Rg1 {[%emt 0:02:35]} Rxg1 {[%emt 0:00:07]} 33. Bxg1 {[%emt 0:00:02]} Kf7 {[%emt 0:00:59]} 34. Bd4 {[%emt 0:00:34]} Bd1 {[%emt 0:00:45]} 35. Bc3 {[%emt 0:00:24]} g5+ {[%emt 0:00:30]} 36. Kg3 {[%emt 0:00:08]} Kg6 {[%emt 0:00:24]} 37. h4 {[%emt 0:03:54]} Kf5 {[%emt 0:01:11]} 38. hxg5 {[%emt 0:00:18]} hxg5 {[%emt 0:00:29]} 39. Bd2 {[%emt 0:01:04]} g4 {[%emt 0:00:14]} 40. Bc3 {[%emt 0:00:26]} Ke4 {[%emt 0:00:17]} 41. Bf6 {[%emt 0:30:56]} Ke3 {[%emt 0:33:31]} 42. Bg5+ {[%emt 0:00:59]} Kd3 {[%emt 0:00:22]} 43. Bf6 {[%emt 0:00:05]} Kc4 {[%emt 0:00:29]} 44. Bc3 {[%emt 0:00:18]} Bf3 {[%emt 0:00:54]} 45. Kf4 {[%emt 0:00:10]} Kd5 {[%emt 0:02:18] Ke4+ Ke5+} 1/2-1/2

[Event "SWE-ch 65 2019"]
[Site "Eskilstuna"]
[Date "2019.07.13"]
[Round "8.3"]
[White "Gillefalk, Bjorn"]
[Black "Westin, Ake"]
[Result "1/2-1/2"]
[ECO "B06"]
[WhiteElo "2071"]
[BlackElo "1975"]
[Annotator "NA"]
[PlyCount "81"]
[EventDate "2019.07.06"]
[EventType "tourn"]
[EventCountry "SWE"]
[SourceTitle "playchess.com"]
[Source "ChessBase"]
[SourceQuality "1"]
[TimeControl "40/5400+30:1800+30"]

1. e4 {[%emt 0:00:00]} Nc6 {[%emt 0:00:01]} 2. Nf3 {[%emt 0:00:00]} d6 {[%emt 0:00:10]} 3. d4 {[%emt 0:00:00]} Nf6 {[%emt 0:00:16]} 4. Nc3 {[%emt 0:00:00]} g6 {[%emt 0:00:19]} 5. Be3 {[%emt 0:00:28]} Bg7 {[%emt 0:00:39]} 6. d5 {[%emt 0:00:54]} Nb8 {[%emt 0:00:35]} 7. a4 {[%emt 0:00:22]} Bg4 {[%emt 0:04:42]} 8. h3 {[%emt 0:05:34]} Bxf3 {[%emt 0:00:24]} 9. Qxf3 {[%emt 0:00:04]} Nbd7 {[%emt 0:01:14]} 10. Bc4 {[%emt 0:07:19]} Ne5 {[%emt 0:05:20]} 11. Qe2 {[%emt 0:00:53]} Nxc4 {[%emt 0:00:09]} 12. Qxc4 {[%emt 0:00:07]} O-O {[%emt 0:03:28]} 13. O-O {[%emt 0:01:24]} Nd7 {[%emt 0:05:30]} 14. a5 {[%emt 0:03:28]} a6 {[%emt 0:06:47]} 15. Ra3 {[%emt 0:18:25]} f5 {[%emt 0:07:52]} 16. exf5 {[%emt 0:05:45]} Rxf5 {[%emt 0:00:14]} 17. Rb3 {[%emt 0:09:40]} b5 {[%emt 0:10:35]} 18. axb6 {[%emt 0:00:29]} cxb6 {[%emt 0:00:20]} 19. Ne4 {[%emt 0:13:25]} b5 {[%emt 0:03:12]} 20. Qe2 {[%emt 0:09:43]} Nb6 {[%emt 0:02:26]} 21. Ng5 {[%emt 0:08:51]} Nxd5 {[%emt 0:04:43]} 22. Ne6 {[%emt 0:00:11]} Qd7 {[%emt 0:00:51]} 23. Nxg7 {[%emt 0:00:11]} Kxg7 {[%emt 0:00:20]} 24. Ra1 {[%emt 0:02:27]} Qc6 {[%emt 0:03:38]} 25. Bd2 {[%emt 0:02:03]} e5 {[%emt 0:01:32]} 26. Qe4 {[%emt 0:01:29]} Qc5 {[%emt 0:08:15]} 27. Be3 {[%emt 0:03:47]} Qc4 {[%emt 0:08:09]} 28. f3 {[%emt 0:02:34]} Rf7 {[%emt 0:03:47]} 29. Bd2 {[%emt 0:00:46]} Qxe4 {[%emt 0:03:47]} 30. fxe4 {[%emt 0:00:01]} Nb6 {[%emt 0:00:46]} 31. Rd3 {[%emt 0:00:55]} Nc4 {[%emt 0:03:38]} 32. Bc3 {[%emt 0:00:37]} Rd7 {[%emt 0:01:54]} 33. Rad1 {[%emt 0:01:19]} Rc8 {[%emt 0:01:53]} 34. b3 {[%emt 0:00:20]} Nb6 {[%emt 0:00:59]} 35. Bxe5+ {[%emt 0:00:51]} dxe5 {[%emt 0:00:37]} 36. Rxd7+ {[%emt 0:00:04]} Nxd7 {[%emt 0:00:15]} 37. Rxd7+ {[%emt 0:00:04]} Kh6 {[%emt 0:00:28]} 38. Rd5 {[%emt 0:02:03]} Rxc2 {[%emt 0:01:00]} 39. Rxe5 {[%emt 0:00:01]} Rb2 {[%emt 0:01:51]} 40. Re6 {[%emt 0:00:30]} Rxb3 {[%emt 0:00:25]} 41. Rxa6 {[%emt 0:30:05]} 1/2-1/2

[Event "SWE-ch 65 2019"]
[Site "Eskilstuna"]
[Date "2019.07.13"]
[Round "8.4"]
[White "Dolata, Henryk"]
[Black "Eriksson, Bo HT"]
[Result "1/2-1/2"]
[ECO "B06"]
[WhiteElo "2061"]
[BlackElo "2051"]
[Annotator "NA"]
[PlyCount "96"]
[EventDate "2019.07.06"]
[EventType "tourn"]
[EventCountry "SWE"]
[SourceTitle "playchess.com"]
[Source "ChessBase"]
[SourceQuality "1"]
[TimeControl "40/5400+30:1800+30"]

1. e4 {[%emt 0:00:00]} c5 {[%emt 0:00:00]} 2. c3 {[%emt 0:00:00]} d5 {[%emt 0:00:02]} 3. exd5 {[%emt 0:00:00]} Qxd5 {[%emt 0:00:07]} 4. Nf3 {[%emt 0:00:26]} g6 {[%emt 0:01:32]} 5. d4 {[%emt 0:00:57]} Bg7 {[%emt 0:03:36]} 6. Na3 {[%emt 0:05:34]} Nh6 {[%emt 0:05:16]} 7. Be2 {[%emt 0:13:12]} cxd4 {[%emt 0:04:33]} 8. Nb5 {[%emt 0:04:17]} Na6 {[%emt 0:00:40]} 9. c4 {[%emt 0:13:34]} Qd8 {[%emt 0:04:33]} 10. Nbxd4 {[%emt 0:00:22]} O-O {[%emt 0:02:41]} 11. O-O {[%emt 0:02:36]} Nf5 {[%emt 0:00:53]} 12. Nc2 {[%emt 0:02:07]} Qb6 {[%emt 0:03:55]} 13. Rb1 {[%emt 0:01:36]} Rd8 {[%emt 0:00:10]} 14. Qe1 {[%emt 0:00:17]} Nd6 {[%emt 0:11:33]} 15. Be3 {[%emt 0:08:44]} Qc7 {[%emt 0:00:16]} 16. b3 {[%emt 0:01:51]} Bf5 {[%emt 0:07:12]} 17. Rc1 {[%emt 0:20:42]} Nc5 {[%emt 0:03:58]} 18. Bxc5 {[%emt 0:08:38]} Qxc5 {[%emt 0:00:08]} 19. b4 {[%emt 0:02:27]} Qc7 {[%emt 0:01:05]} 20. c5 {[%emt 0:00:16]} Ne4 {[%emt 0:02:13]} 21. Ne3 {[%emt 0:00:24]} Be6 {[%emt 0:02:37]} 22. Bc4 {[%emt 0:00:14]} Bxc4 {[%emt 0:02:25]} 23. Nxc4 {[%emt 0:00:03]} f5 {[%emt 0:05:14]} 24. Qe2 {[%emt 0:01:07]} Rd7 {[%emt 0:03:05]} 25. Rfd1 {[%emt 0:04:16]} Rad8 {[%emt 0:00:21]} 26. h3 {[%emt 0:03:04]} Kh8 {[%emt 0:02:29]} 27. Rxd7 {[%emt 0:00:52]} Rxd7 {[%emt 0:00:34]} 28. a3 {[%emt 0:00:44]} h6 {[%emt 0:02:25]} 29. Qc2 {[%emt 0:00:21]} Kh7 {[%emt 0:00:24]} 30. Rd1 {[%emt 0:00:19]} Qd8 {[%emt 0:00:45]} 31. Rxd7 {[%emt 0:00:12]} Qxd7 {[%emt 0:00:06]} 32. a4 {[%emt 0:01:13]} Qd5 {[%emt 0:07:02]} 33. Ne3 {[%emt 0:01:23]} Qc6 {[%emt 0:03:13]} 34. Qb3 {[%emt 0:00:27]} e6 {[%emt 0:01:57]} 35. h4 {[%emt 0:01:06]} a5 {[%emt 0:03:38]} 36. b5 {[%emt 0:00:28]} Qxc5 {[%emt 0:00:13]} 37. Qxe6 {[%emt 0:00:03]} Qc1+ {[%emt 0:03:08]} 38. Kh2 {[%emt 0:00:24]} Nxf2 {[%emt 0:01:19]} 39. Nxf5 {[%emt 0:03:30]} Qf4+ {[%emt 0:06:26]} 40. Ng3 {[%emt 0:00:51]} Ng4+ {[%emt 0:01:23]} 41. Kh3 {[%emt 0:30:12]} Nf2+ {[%emt 0:30:29]} 42. Kh2 {[%emt 0:00:02]} Qc1 {[%emt 0:01:26]} 43. Nf5 Qf4+ {[%emt 0:00:05]} 44. Kg1 Nh3+ {[%emt 0:00:16]} 45. gxh3 {[%emt 0:00:07]} Qxf3 {[%emt 0:00:03]} 46. Nxg7 {[%emt 0:00:08]} Qg3+ {[%emt 0:00:04]} 47. Kf1 {[%emt 0:00:05]} Qf3+ {[%emt 0:00:08]} 48. Ke1 Kxg7 {[%emt 0:00:02]} 1/2-1/2

[Event "SWE-ch 65 2019"]
[Site "Eskilstuna"]
[Date "2019.07.14"]
[Round "9.1"]
[White "Bellon Lopez, Juan Manuel"]
[Black "Larsson, Per-Olov"]
[Result "0-1"]
[ECO "D05"]
[WhiteElo "2343"]
[BlackElo "1954"]
[Annotator "NA"]
[PlyCount "146"]
[EventDate "2019.07.06"]
[EventType "tourn"]
[EventCountry "SWE"]
[SourceTitle "playchess.com"]
[Source "ChessBase"]
[SourceQuality "1"]
[TimeControl "40/5400+30:1800+30"]

1. d4 {[%emt 0:00:00]} Nf6 {[%emt 0:00:00]} 2. Nf3 {[%emt 0:00:27]} d5 {[%emt 0:00:41]} 3. e3 {[%emt 0:00:13]} c5 {[%emt 0:01:38]} 4. c3 {[%emt 0:00:20]} e6 {[%emt 0:00:37]} 5. Nbd2 {[%emt 0:00:17]} Nbd7 {[%emt 0:01:34]} 6. Bd3 {[%emt 0:00:20]} b6 {[%emt 0:01:17]} 7. Qa4 {[%emt 0:01:16] D05: Colle System with ...e6} (7. Qe2 Bb7 8. O-O Be7 9. b3 O-O 10. Bb2 Rc8 11. Rac1 Bd6 12. c4 cxd4 13. exd4 Qe7 14. Ne5 Ba3 15. Bxa3 Qxa3 {½-½ (44) Kramnik,V (2777)-Ding,L (2813) Wijk aan Zee 2019}) 7... Qc7 $146 {[%emt 0:02:53]} ({Predecessor:} 7... c4 8. Bb1 a6 9. e4 b5 10. Qd1 dxe4 11. Nxe4 Bb7 12. Qe2 Nd5 13. O-O Qc7 {0-1 (42) Lamas Baliero,P-Diano,D Uruguay 1971}) 8. Ne5 {[%emt 0:00:17]} Bd6 {[%emt 0:03:31]} 9. f4 {[%emt 0:00:08]} O-O {[%emt 0:01:12]} 10. O-O {[%emt 0:00:09]} Bb7 {[%emt 0:03:18]} 11. Ndf3 {[%emt 0:04:58]} a6 {[%emt 0:03:05]} 12. Bd2 {[%emt 0:08:03]} b5 {[%emt 0:03:59]} 13. Qd1 {[%emt 0:02:04]} Ne4 {[%emt 0:01:52]} 14. Ng5 {[%emt 0:04:49]} Nxg5 {[%emt 0:11:07]} 15. Nxd7 {[%emt 0:04:42]} Nh3+ {[%emt 0:01:23]} 16. Kh1 {[%emt 0:05:35]} Qxd7 {[%emt 0:01:44]} 17. Qh5 {[%emt 0:00:21]} f5 {[%emt 0:01:25]} 18. Qxh3 {[%emt 0:00:14]} c4 {[%emt 0:02:32]} 19. Bc2 {[%emt 0:00:36]} g6 {[%emt 0:01:43]} 20. g4 {[%emt 0:00:09]} Rf7 {[%emt 0:01:07]} 21. Rf3 {[%emt 0:01:53]} Rg7 {[%emt 0:02:52]} 22. Rg1 {[%emt 0:00:09]} Bc8 {[%emt 0:01:10]} 23. Be1 {[%emt 0:03:36]} Qf7 {[%emt 0:05:54]} 24. gxf5 {[%emt 0:10:24]} exf5 {[%emt 0:00:35]} 25. Qh6 {[%emt 0:00:42]} Bd7 {[%emt 0:13:13]} 26. h4 {[%emt 0:00:24]} Be8 {[%emt 0:00:36]} 27. h5 $11 {[%emt 0:02:08]} Ra7 {[%emt 0:02:08]} 28. Rh3 {[%emt 0:01:25]} Qe6 {[%emt 0:02:36]} 29. Bf2 {[%emt 0:19:01]} Bf8 {[%emt 0:05:11]} 30. Qg5 {[%emt 0:04:27]} Be7 {[%emt 0:02:07]} 31. Qg2 {[%emt 0:00:26]} Bf6 {[%emt 0:00:46]} 32. Qh2 {[%emt 0:04:25]} a5 {[%emt 0:02:49]} 33. hxg6 {[%emt 0:02:06]} Bxg6 {[%emt 0:01:30]} 34. e4 {[%emt 0:02:41]} fxe4 {[%emt 0:09:18]} 35. f5 {[%emt 0:02:21]} Bxf5 {[%emt 0:00:33]} 36. Rh6 {[%emt 0:04:57]} Rxg1+ {[%emt 0:02:54]} 37. Bxg1 {[%emt 0:00:40]} Rb7 {[%emt 0:03:39]} 38. Qf4 {[%emt 0:02:21]} Bg6 {[%emt 0:00:41]} 39. Be3 {[%emt 0:01:13]} Bg7 {[%emt 0:00:45]} 40. Rh2 {[%emt 0:02:25]} Qf6 {[%emt 0:01:52]} 41. Qg4 {[%emt 0:32:37]} Qf1+ {[%emt 0:06:39]} 42. Bg1 {[%emt 0:00:00]} Qf3+ {[%emt 0:00:25]} 43. Qxf3 {[%emt 0:00:00]} exf3 {[%emt 0:00:08]} 44. Bxg6 {[%emt 0:00:00]} hxg6 {[%emt 0:00:09]} 45. Rh3 {[%emt 0:00:00]} Rf7 {[%emt 0:02:45]} 46. Bf2 {[%emt 0:00:00]} g5 {[%emt 0:00:53]} 47. Kh2 {[%emt 0:00:00]} Rf5 {[%emt 0:02:17]} 48. Kg3 {[%emt 0:00:00]} Kf7 {[%emt 0:00:17]} 49. Kg4 {[%emt 0:00:00]} Kg6 {[%emt 0:00:36]} 50. Rh1 {[%emt 0:00:00]} Rf4+ {[%emt 0:05:58]} 51. Kg3 {[%emt 0:00:00]} b4 {[%emt 0:03:18]} 52. Be3 {[%emt 0:00:00]} Rf5 {[%emt 0:00:48]} 53. a4 {[%emt 0:00:00]} Bf8 {[%emt 0:01:35]} 54. Kf2 {[%emt 0:00:00]} Bd6 {[%emt 0:00:44]} 55. cxb4 {[%emt 0:00:00]} Bxb4 {[%emt 0:01:08]} 56. Rh8 {[%emt 0:00:00]} Rf8 {[%emt 0:00:15]} 57. Rh1 {[%emt 0:06:31]} Bd6 {[%emt 0:00:30]} 58. Bd2 {[%emt 0:00:26]} Bf4 {[%emt 0:02:39]} 59. Bxa5 {[%emt 0:00:05]} g4 {[%emt 0:00:23]} 60. Be1 {[%emt 0:01:31]} Bb8 {[%emt 0:01:07]} 61. Rg1 {[%emt 0:01:41]} g3+ {[%emt 0:01:20]} 62. Rxg3+ {[%emt 0:00:08]} Bxg3+ {[%emt 0:00:08]} 63. Kxg3 {[%emt 0:00:01]} f2 {[%emt 0:02:38]} 64. Bxf2 {[%emt 0:00:00]} Rb8 {[%emt 0:00:08]} 65. Kf4 {[%emt 0:00:26]} Kf6 {[%emt 0:00:27]} 66. Be1 {[%emt 0:01:06]} Rxb2 {[%emt 0:00:14]} 67. a5 {[%emt 0:00:01]} Ra2 {[%emt 0:00:50]} 68. Bb4 {[%emt 0:02:49]} Ke6 {[%emt 0:00:25]} 69. Be1 {[%emt 0:00:19]} Kd6 {[%emt 0:00:26]} 70. Bb4+ {[%emt 0:00:33]} Kc6 {[%emt 0:00:08]} 71. Bc3 {[%emt 0:00:16]} Re2 {[%emt 0:00:54]} 72. Kf3 {[%emt 0:01:38]} Re8 {[%emt 0:00:31]} 73. Kf4 {[%emt 0:00:28]} Kb5 {[%emt 0:00:32]} 0-1